[Event "Israel Team Championship 2025"]
[Site "Israel"]
[Date "2025.01.17"]
[Round "3.1"]
[White "Eljanov, Pavel"]
[Black "Tzidkiya, Yeshaayahu"]
[Result "1-0"]
[Annotator "TA"]
[ECO "D78"]
[WhiteElo "2656"]
[BlackElo "2479"]
[PlyCount "75"]
[EventDate "2025.01.07"]
[EventType "team-tourn"]
[EventCountry "ISR"]
[SourceTitle "playchess.com"]
[Source "ChessBase"]
[SourceQuality "1"]
[TimeControl "40/5400+30:1800+30"]

{[%evp 18,75,18,18,21,14,27,13,23,22,79,55,53,22,56,60,57,57,64,57,66,60,114,114,125,127,144,128,139,135,183,169,172,169,165,177,299,306,354,360,365,344,476,478,447,369,431,408,502,498,876,850,797,537,577,541,29988,29989,29996,29997]} 1. d4 {[%emt 0:00:23]} Nf6 {[%emt 0:00:08]} 2. c4 {[%emt 0:00:08]} g6 {[%emt 0:00:24]} 3. g3 {[%emt 0:03:15]} c6 {[%emt 0:04:02]} 4. Bg2 {[%emt 0:00:31]} d5 {[%emt 0:00:09]} 5. Nf3 {[%emt 0:02:33]} Bg7 {[%emt 0:00:07]} 6. O-O {[%emt 0:00:20]} O-O {[%emt 0:00:03]} 7. Qa4 {[%emt 0:00:04]} dxc4 {[%emt 0:07:27]} 8. Qxc4 {[%emt 0:00:05]} Bf5 {[%emt 0:00:04]} 9. Nc3 {[%emt 0:09:40]} Nbd7 {[%emt 0:05:41][%cal Bb8d7,Bd7b6,Bb6c4][%mdl 32]} 10. Re1 {[%emt 0:03:00]} Ne4 {[%emt 0:29:03]} 11. Qb3 {[%emt 0:01:30]} Nd6 {[%emt 0:02:29]} 12. e4 {[%emt 0:08:40]} Bg4 {[%emt 0:06:15]} 13. Be3 {[%emt 0:03:26]} b5 {[%emt 0:12:12]} (13... Qb6 $11 {keeps the balance.}) 14. Nd2 {[%emt 0:10:21]} Nb6 {[%emt 0:08:54]} 15. h3 {[%emt 0:14:27]} Bd7 {[%emt 0:02:17]} 16. Rad1 $36 {[%emt 0:00:47][%mdl 2048] White is pushing.} Ndc4 {[%emt 0:03:13]} 17. Nxc4 {[%emt 0:00:20]} Nxc4 {[%emt 0:00:03]} 18. Bg5 {[%emt 0:02:05]} h6 {[%emt 0:00:25]} 19. Bc1 {[%emt 0:00:23]} Qb6 {[%emt 0:03:12]} ({Black should play} 19... a5 $14) 20. Qc2 $16 {[%emt 0:01:28]} Rac8 {[%emt 0:08:13]} 21. b3 {[%emt 0:02:47]} Nd6 {[%emt 0:00:04][%cal Od7e6]} 22. e5 {[%emt 0:06:00]} Nf5 {[%emt 0:00:56]} 23. Ne4 {[%emt 0:00:10] White is more active.} Be6 {[%emt 0:05:46]} (23... Nxd4 $2 24. Qc5 $18) (23... Rcd8 $16 {was worth a try.}) 24. Nc5 $18 {[%emt 0:00:30]} Rcd8 {[%emt 0:00:35]} 25. Nxe6 {[%emt 0:05:07]} fxe6 {[%emt 0:00:02] [#]} 26. Be3 $1 {[%emt 0:00:13][%cal Bc1e3,Be3d2,Bd2a5][%mdl 32]} (26. Qxc6 $6 Qxc6 27. Bxc6 Nxd4 $11) 26... c5 {[%emt 0:01:07]} (26... Kh7 $142 27. Qxc6 (27. Bxc6 Rc8 $16) 27... h5 28. Qxb6 axb6) 27. dxc5 {[%emt 0:02:24][%cal Bd4c5,Bc5c6,Bc6c7][%mdl 32]} (27. Qxc5 Qxc5 28. dxc5 Rxd1 29. Rxd1 Nxe3 30. fxe3 Bxe5 $16) 27... Qc7 {[%emt 0:00:36]} 28. Rxd8 {[%emt 0:01:19]} Rxd8 {[%emt 0:00:13]} 29. c6 {[%emt 0:02:46]} ({Don't take} 29. b4 a5 30. f4 axb4 $18) 29... Qxe5 {[%emt 0:00:23]} 30. Bd2 {[%emt 0:02:26] Prevents Qc3. A strong pair of Bishops.} (30. c7 Rc8 $16) 30... Qd6 {[%emt 0:00:13]} 31. Ba5 {[%emt 0:05:10]} ({Not} 31. Bf4 e5 $18) 31... Rc8 {[%emt 0:00:04]} 32. Qe4 {[%emt 0:01:09]} e5 {[%emt 0:01:39]} 33. c7 {[%emt 0:00:33]} Kf8 {[%emt 0:00:28]} (33... Rxc7 $142 34. Qd5+ (34. Bxc7 Qxc7 35. Qb1 Qd6 $18) 34... Qxd5 35. Bxd5+ e6 36. Bxc7 (36. Bxe6+ Rf7 $18) 36... exd5 37. Bxe5 d4 38. Bxg7 Kxg7) 34. Qb7 {[%emt 0:01:17][%csl LRa7,LRb5,LRc8]} Qd7 {[%emt 0:00:04]} 35. Qc6 {[%emt 0:01:20]} Qd6 {[%emt 0:00:45]} 36. g4 {[%emt 0:01:01]} Qa3 {[%emt 0:00:41]} 37. Qe6 {[%emt 0:02:50]} Nd6 {[%emt 0:00:29] [#]} 38. Bd5 $1 {[%emt 0:00:50]} 1-0

[Event "Israel Team Championship 2025"]
[Site "Israel"]
[Date "2025.01.17"]
[Round "3.2"]
[White "Baron, Tal"]
[Black "Smirin, Ilia"]
[Result "1/2-1/2"]
[Annotator "TA"]
[ECO "B09"]
[WhiteElo "2441"]
[BlackElo "2581"]
[PlyCount "65"]
[EventDate "2025.01.07"]
[EventType "team-tourn"]
[EventCountry "ISR"]
[SourceTitle "playchess.com"]
[Source "ChessBase"]
[SourceQuality "1"]
[TimeControl "40/5400+30:1800+30"]

{[%evp 12,65,36,44,41,51,56,8,0,-15,-26,-63,-55,-54,-61,-60,-22,-38,-36,-101,-52,-44,-53,-39,-43,-36,-37,-36,-40,-45,-42,-51,-28,-19,-27,-24,-19,-9,-18,-21,-17,-47,-42,-56,-29,-29,0,0,0,0,0,0,0,0,0,0]} 1. e4 {[%emt 0:00:02]} d6 {[%emt 0:09:19]} 2. d4 {[%emt 0:01:24]} Nf6 {[%emt 0:00:05]} 3. Nc3 {[%emt 0:00:06]} g6 {[%emt 0:00:11]} 4. f4 {[%emt 0:00:38]} Bg7 {[%emt 0:00:24]} 5. Nf3 {[%emt 0:00:36]} O-O {[%emt 0:01:05]} 6. Bd3 {[%emt 0:00:04]} Nc6 {[%emt 0:00:40]} 7. O-O {[%emt 0:00:08]} e5 {[%emt 0:03:24]} 8. d5 {[%emt 0:00:38]} Nd4 {[%emt 0:00:54]} 9. f5 {[%emt 0:00:07]} (9. fxe5 $14 {deserves consideration.} dxe5 10. Nxe5) 9... c6 $11 {[%emt 0:02:37]} 10. fxg6 {[%emt 0:15:44]} fxg6 {[%emt 0:03:38]} 11. Bg5 {[%emt 0:14:15]} Bg4 {[%emt 0:03:28]} 12. Qd2 {[%emt 0:01:57]} Bxf3 {[%emt 0:05:40]} 13. gxf3 {[%emt 0:00:02]} Qb6 {[%emt 0:01:18]} 14. Kh1 {[%emt 0:11:01]} Nh5 {[%emt 0:01:33]} (14... Qxb2 15. Rab1 Qa3 16. Rxb7 $16) 15. Be3 {[%emt 0:00:30] [#]} (15. dxc6 $15 bxc6 16. Na4) 15... Qd8 {[%emt 0:02:09]} ({Much worse is} 15... Rxf3 16. Rxf3 Nxf3 17. Bxb6 $11) (15... Qxb2 $6 16. Rab1 Qa3 17. Rxb7 $14) (15... Nxf3 16. Rxf3 c5 17. Rff1 $18) ({Black should play} 15... c5 $1 $17 16. b3 Qd8 (16... Nxf3 17. Qg2 $17) (16... Rxf3 17. Rxf3 Nxf3 18. Qg2 $15)) 16. Qg2 {[%emt 0:06:55]} Kh8 {[%emt 0:06:20]} 17. Rad1 {[%emt 0:03:32]} Nf4 {[%emt 0:11:24]} 18. Bxf4 {[%emt 0:01:20]} Rxf4 {[%emt 0:00:05]} 19. dxc6 {[%emt 0:01:36]} bxc6 {[%emt 0:00:22]} 20. Ne2 {[%emt 0:00:06]} Nxe2 {[%emt 0:01:55]} 21. Bxe2 {[%emt 0:00:26]} d5 {[%emt 0:05:13]} 22. exd5 {[%emt 0:01:08]} cxd5 {[%emt 0:00:13]} 23. c4 {[%emt 0:00:44]} d4 {[%emt 0:00:10]} 24. Bd3 {[%emt 0:01:45]} Qe7 {[%emt 0:03:02]} 25. Be4 {[%emt 0:02:52]} Rb8 {[%emt 0:05:43]} 26. Rd3 {[%emt 0:02:15]} Bh6 {[%emt 0:01:30]} 27. Qc2 {[%emt 0:03:22]} Rbf8 {[%emt 0:06:17]} 28. Rb3 {[%emt 0:03:17]} Qh4 {[%emt 0:02:11][%cal Of4e4] and ...Rxe4! would now be decisive} 29. Rg1 {[%emt 0:00:27]} R4f7 {[%emt 0:02:18]} 30. Rg4 {[%emt 0:03:03]} Qe1+ {[%emt 0:00:27]} 31. Rg1 {[%emt 0:00:03]} Qh4 {[%emt 0:00:27]} 32. Rg4 {[%emt 0:00:25]} Qe1+ {[%emt 0:04:01]} 33. Rg1 {[%emt 0:00:04]} 1/2-1/2

[Event "Israel Team Championship 2025"]
[Site "Israel"]
[Date "2025.01.17"]
[Round "3.3"]
[White "Sutovsky, Emil"]
[Black "Flom, Gabriel"]
[Result "1-0"]
[Annotator "TA"]
[ECO "B07"]
[WhiteElo "2590"]
[BlackElo "2458"]
[PlyCount "47"]
[EventDate "2025.01.07"]
[EventType "team-tourn"]
[EventCountry "ISR"]
[SourceTitle "playchess.com"]
[Source "ChessBase"]
[SourceQuality "1"]
[TimeControl "40/5400+30:1800+30"]

{[%evp 13,47,35,41,26,50,12,26,23,43,37,41,35,36,47,37,41,53,47,40,42,43,55,51,52,188,198,235,243,346,335,340,345,676,667,647,146]} 1. e4 {[%emt 0:00:07]} d6 {[%emt 0:00:14]} 2. d4 {[%emt 0:00:11]} Nf6 {[%emt 0:00:11]} 3. f3 {[%emt 0:01:34]} e5 {[%emt 0:00:31]} 4. dxe5 {[%emt 0:00:25]} dxe5 {[%emt 0:00:03]} 5. Qxd8+ {[%emt 0:00:05]} Kxd8 {[%emt 0:00:02]} 6. Bc4 {[%emt 0:00:05]} Ke8 {[%emt 0:02:14]} 7. Be3 {[%emt 0:04:11]} Nbd7 {[%emt 0:03:11]} 8. a4 {[%emt 0:05:13]} a5 {[%emt 0:04:06]} 9. Na3 {[%emt 0:06:53][%cal Bb1a3,Ba3c4,Bc4d6][%mdl 32]} c6 {[%emt 0:00:58] Against Nb5} 10. Ba2 {[%emt 0:04:51]} Bc5 {[%emt 0:04:45]} 11. Bxc5 {[%emt 0:02:46]} Nxc5 {[%emt 0:00:04]} 12. Nc4 {[%emt 0:00:04]} Nfd7 $1 {[%emt 0:00:09][%cal Oe8e7]} 13. Nd6+ {[%emt 0:07:44]} Ke7 {[%emt 0:00:02]} 14. O-O-O $1 {[%emt 0:06:57]} (14. Nxf7 Rf8 15. Ng5 h6 $17) 14... f6 {[%emt 0:10:09]} 15. Nf5+ {[%emt 0:10:28]} Kf8 $1 {[%emt 0:00:16][%cal Og7g6]} 16. h4 {[%emt 0:09:13]} h5 {[%emt 0:01:09][%cal Og7g6]} (16... Nxa4 17. h5 $16) 17. g4 {[%emt 0:00:10]} g6 {[%emt 0:02:33]} ({Much worse is} 17... Nxa4 18. gxh5 Rxh5 19. Ne2 $16) 18. Nd6 {[%emt 0:04:29]} Ke7 {[%emt 0:05:31] [#]} (18... hxg4 $14 19. fxg4 Nb6) 19. gxh5 $1 $18 {[%emt 0:01:54]} Rxh5 {[%emt 0:00:14] [#]} 20. Ne2 $1 {[%emt 0:00:51][%cal Bg1e2,Be2g3,Bg3f5][%mdl 32] Hoping for Ng3.} Nf8 {[%emt 0:13:39]} (20... Rh8 $142 21. Ng3 Nb6) 21. Ng3 {[%emt 0:00:35]} Rh8 {[%emt 0:00:34]} 22. h5 {[%emt 0:02:42]} gxh5 $2 {[%emt 0:04:10]} (22... Be6 23. hxg6 Nxg6 24. Ngf5+ Kf8 25. Nxb7 Bxf5 26. exf5 (26. Nxc5 Rxh1 27. Rxh1 Bc8 $18) 26... Nxb7 27. fxg6 Kg7 28. Rd7+ Kxg6 29. Rg1+ Kf5 30. Rxb7 Rad8) 23. Nxc8+ {[%emt 0:00:32]} (23. Rxh5 Rxh5 24. Nxh5 Be6 $16) (23. Nxh5 Be6 $11) 23... Rxc8 {[%emt 0:00:08]} 24. Nf5+ {[%emt 0:00:01]} ({Inferior is} 24. Rxh5 Rxh5 25. Nxh5 Nfd7 $15 (25... Nxa4 26. Ng7 $15)) (24. Nxh5 Rd8 25. Rdg1 Nfe6 $11) 1-0

[Event "Israel Team Championship 2025"]
[Site "Israel"]
[Date "2025.01.17"]
[Round "3.4"]
[White "Deutsch, Eyal"]
[Black "Alekseev, Evgeny"]
[Result "1/2-1/2"]
[Annotator "TA"]
[ECO "A45"]
[WhiteElo "2286"]
[BlackElo "2518"]
[PlyCount "90"]
[EventDate "2025.01.07"]
[EventType "team-tourn"]
[EventCountry "ISR"]
[SourceTitle "playchess.com"]
[Source "ChessBase"]
[SourceQuality "1"]
[TimeControl "40/5400+30:1800+30"]

{[%evp 9,90,8,22,9,-1,0,11,0,-7,0,-4,-35,-28,-21,0,8,13,-19,-12,-10,-12,-15,-13,-18,-8,-28,-32,-20,-38,-29,-26,-41,-18,-35,-39,-31,-12,-37,-23,-79,-41,-62,-44,-50,-16,-49,-65,-82,-30,-31,-16,-77,-53,-53,-29,-33,-25,-22,-24,-29,-31,-32,0,-8,0,-8,0,-4,0,0,0,0,0,0,0,0,0,0,0,0,0,0,0]} 1. d4 {[%emt 0:00:03]} Nf6 {[%emt 0:01:03]} 2. Bg5 {[%emt 0:01:05]} e6 {[%emt 0:00:57]} 3. Nd2 {[%emt 0:00:08]} h6 {[%emt 1:30:00]} 4. Bh4 {[%emt 0:00:42]} d6 {[%emt 0:00:00]} 5. e4 {[%emt 0:00:11]} Nbd7 {[%emt 0:00:00]} 6. f3 {[%emt 0:03:02]} Be7 {[%emt 0:00:00]} 7. Bf2 {[%emt 0:05:23]} c6 {[%emt 0:00:00]} 8. c4 {[%emt 0:00:11]} O-O {[%emt 0:00:00]} 9. Ne2 {[%emt 0:00:24]} a6 {[%emt 0:00:00]} 10. Nf4 {[%emt 0:11:07]} b5 {[%emt 0:00:00]} 11. Qc2 {[%emt 0:02:56]} bxc4 {[%emt 0:00:00]} 12. Bxc4 {[%emt 0:00:12]} d5 {[%emt 0:00:00]} 13. Be2 {[%emt 0:06:00]} dxe4 {[%emt 0:00:00]} 14. fxe4 {[%emt 0:00:12][%cal Oe1g1]} e5 {[%emt 0:00:00]} 15. dxe5 {[%emt 0:00:09]} Nxe5 {[%emt 0:00:00]} 16. h3 {[%emt 0:03:24]} Bd6 {[%emt 0:00:00][%cal Oe5g4]} 17. O-O {[%emt 0:00:58] [#]} Neg4 $1 {[%emt 0:00:00]} 18. Bxg4 {[%emt 0:04:23]} Nxg4 {[%emt 0:00:00]} 19. Nd3 {[%emt 0:04:22]} Nxf2 {[%emt 0:00:00]} 20. Rxf2 {[%emt 0:00:09][%cal Og1h1]} Be6 {[%emt 0:00:00]} 21. Nf3 {[%emt 0:07:21][%cal Og1h1]} Qb6 {[%emt 0:00:00]} 22. Kh1 {[%emt 0:01:54]} Rfd8 {[%emt 0:00:12]} 23. Rd2 {[%emt 0:00:31]} c5 {[%emt 0:01:48]} 24. b3 {[%emt 0:00:15]} (24. e5 $1 $11 Bc7 25. Qxc5) 24... Rac8 {[%emt 0:00:21]} (24... c4 $5 25. bxc4 Rdc8 $14) 25. Nb2 {[%emt 0:00:14]} Bf4 {[%emt 0:04:38]} 26. Rxd8+ {[%emt 0:00:23]} Qxd8 {[%emt 0:00:22]} 27. Qe2 {[%emt 0:02:36] White is weak on the dark squares} Qa5 {[%emt 0:01:25]} 28. Qc2 {[%emt 0:00:22]} Rd8 {[%emt 0:01:07]} (28... c4 $17 {...cxb3 is the strong threat.} 29. Nxc4 Qh5) 29. Nd3 $1 $11 {[%emt 0:01:12]} Bd6 {[%emt 0:01:32][%cal Oc5c4]} 30. Nb2 {[%emt 0:02:58]} (30. e5 $1 $11 {remains equal.} Bf8 31. Nf4) 30... Be7 {[%emt 0:00:25]} 31. Nc4 {[%emt 0:00:29]} Qc7 {[%emt 0:00:10]} 32. Rd1 {[%emt 0:05:05]} Rxd1+ {[%emt 0:00:26]} 33. Qxd1 {[%emt 0:00:08]} Qf4 {[%emt 0:00:15]} 34. Qd3 {[%emt 0:03:49]} Qc1+ {[%emt 0:00:41]} 35. Kh2 {[%emt 0:00:16]} Qf4+ {[%emt 0:00:23]} 36. Kg1 {[%emt 0:00:31]} Qc1+ {[%emt 0:01:08]} 37. Kf2 {[%emt 0:00:38]} Qa1 {[%emt 0:00:43]} 38. Qe2 {[%emt 0:00:57]} Bd8 {[%emt 0:01:19]} 39. Qb2 {[%emt 0:01:06]} Qxb2+ {[%emt 0:00:20]} 40. Nxb2 {[%emt 0:00:12][%mdl 4096] Endgame KBB-KNN} Kf8 {[%emt 0:00:33]} 41. Ke3 {[%emt 0:30:42]} Ke7 {[%emt 0:30:23]} 42. Ne5 {[%emt 0:00:46]} Kd6 {[%emt 0:00:40] Against Nc6} 43. Nbc4+ {[%emt 0:00:35]} Kc7 {[%emt 0:00:30]} 44. Kd3 {[%emt 0:01:24]} Bf6 {[%emt 0:00:00]} 45. Ng4 {[%emt 0:00:00]} Ba1 {[%emt 0:00:00]} 1/2-1/2

[Event "Israel Team Championship 2025"]
[Site "Israel"]
[Date "2025.01.17"]
[Round "3.5"]
[White "Kogan, Arthur"]
[Black "Tarnopolsky, Anatoly"]
[Result "1-0"]
[Annotator "TA"]
[ECO "B12"]
[WhiteElo "2462"]
[BlackElo "2302"]
[PlyCount "55"]
[EventDate "2025.01.07"]
[EventType "team-tourn"]
[EventCountry "ISR"]
[SourceTitle "playchess.com"]
[Source "ChessBase"]
[SourceQuality "1"]
[TimeControl "40/5400+30:1800+30"]

{[%evp 9,55,3,2,2,6,-10,22,14,28,20,0,-70,18,12,20,14,17,20,14,0,0,0,0,0,0,-16,15,10,134,113,95,133,338,314,358,379,357,338,424,293,462,267,476,7,471,471,2472,2312]} 1. e4 {[%emt 0:00:12]} c6 {[%emt 0:00:05]} 2. d4 {[%emt 0:00:42]} d5 {[%emt 0:00:07]} 3. e5 {[%emt 0:00:04]} c5 {[%emt 0:00:15]} 4. dxc5 {[%emt 0:01:30]} e6 {[%emt 0:00:41]} 5. Qg4 {[%emt 0:00:34]} h5 {[%emt 0:03:30]} 6. Qf4 {[%emt 0:01:03]} Bxc5 {[%emt 0:00:54]} 7. Nc3 {[%emt 0:02:07]} Nh6 {[%emt 0:16:01]} 8. Nf3 {[%emt 0:12:32]} Ng4 {[%emt 0:13:09]} (8... Nc6 {simplifies} 9. Bd3 Nb4 10. O-O Nxd3 11. cxd3 Nf5) 9. Bb5+ {[%emt 0:00:38]} Bd7 $1 {[%emt 0:03:05][%cal Od7b5] ...Bxb5! would now be deadly.} 10. O-O {[%emt 0:01:18]} (10. h3 $11 Nxf2 (10... Bxf2+ $2 11. Ke2 $18) 11. Bxd7+ Qxd7 (11... Nxd7 12. Rf1 $14) 12. Rf1) 10... Bxb5 {[%emt 0:14:06]} (10... Qb6 $15 11. Bxd7+ Nxd7) 11. Nxb5 $11 {[%emt 0:00:21]} Qb6 {[%emt 0:02:51]} 12. Nd6+ {[%emt 0:20:45]} Bxd6 {[%emt 0:00:09]} 13. exd6 $40 {[%emt 0:00:02][%mdl 128] White attacks.} Nd7 {[%emt 0:09:57]} 14. h3 {[%emt 0:12:55]} Ngf6 {[%emt 0:01:42]} 15. c4 {[%emt 0:02:51]} dxc4 {[%emt 0:03:21]} 16. Rd1 {[%emt 0:01:49][%cal Of3e5]} Rc8 {[%emt 0:06:22]} 17. Ne5 {[%emt 0:03:38]} Nxe5 {[%emt 0:02:40]} 18. Qxe5 {[%emt 0:00:28]} O-O {[%emt 0:02:41] [#]} (18... Qc5 $11 19. Qg3 (19. d7+ Nxd7 20. Qxg7 Qe5 $15) 19... Rh7 (19... O-O $2 20. d7 $18)) 19. Bh6 $1 $16 {[%emt 0:08:29][%mdl 512]} gxh6 {[%emt 0:04:24]} 20. Qxf6 {[%emt 0:00:14][%cal Oa1c1]} Rc5 $2 {[%emt 0:01:39]} (20... Kh7 $16 21. d7 Rcd8) 21. d7 $1 $18 {[%emt 0:10:05]} (21. Qxh6 Qxb2 $11) 21... Rf5 {[%emt 0:03:30] [#]} 22. Qe7 $1 {[%emt 0:03:19]} (22. d8=Q $2 Qxf2+ (22... Rxd8 $2 23. Rxd8+ $18) 23. Kh2 Rxf6 $19) 22... Rd8 {[%emt 0:00:33][%cal Og8g7]} 23. Rd2 {[%emt 0:00:22] Black must now prevent Rc1. Active counter play!} Qc7 {[%emt 0:00:26]} 24. Rad1 {[%emt 0:01:27]} Kg7 {[%emt 0:02:31]} (24... Rg5 {might work better.} 25. Rd6 Rf5) 25. Rd4 {[%emt 0:02:41]} (25. Re2 $142 Qb6 26. Re3) 25... b5 $2 {[%emt 0:00:29] [#]} (25... Qb6 26. R4d2 (26. Rxc4 Qxf2+ 27. Kh2 Rg5 $17) 26... Rd5) 26. a4 $2 {[%emt 0:02:20]} a6 $2 {[%emt 0:00:31][%mdl 8192]} (26... bxa4 $11 {and Black has nothing to worry.} 27. Kh1 Rxf2 (27... a3 28. Qxa3 Rd5 29. Rxd5 $16)) 27. Rd6 {[%emt 0:01:12]} Rg5 {[%emt 0:04:41]} (27... Rf6 $142 28. axb5 (28. Rxa6 b4 $18) 28... axb5) 28. Rxe6 {[%emt 0:01:14]} 1-0

[Event "Israel Team Championship 2025"]
[Site "Israel"]
[Date "2025.01.17"]
[Round "3.6"]
[White "Solomon, Asif"]
[Black "Golod, Vitali"]
[Result "0-1"]
[Annotator "TA"]
[ECO "E16"]
[WhiteElo "2142"]
[BlackElo "2487"]
[PlyCount "116"]
[EventDate "2025.01.07"]
[EventType "team-tourn"]
[EventCountry "ISR"]
[SourceTitle "playchess.com"]
[Source "ChessBase"]
[SourceQuality "1"]
[TimeControl "40/5400+30:1800+30"]

{[%evp 14,116,28,36,45,41,43,36,37,42,36,23,20,21,22,17,24,2,40,-35,-28,-41,0,0,0,-2,2,-13,-16,-18,-18,-18,-25,-28,-25,-26,-23,-26,-31,-82,-82,-73,-31,-35,-22,-28,-35,-56,-24,-35,-32,-148,-148,-146,-132,-132,-129,-133,-26,-22,0,-126,-162,-137,-133,-153,-147,-160,-167,-160,-152,-160,-160,-154,-154,-186,-142,-132,-150,-152,-140,-326,-321,-339,-254,-339,-292,-309,-284,-481,-457,-683,-676,-664,-664,-717,-645,-950,-531,-6420,-6412,-2018,-1441,-1803,-1735]} 1. d4 {[%emt 0:00:09]} Nf6 {[%emt 0:00:55]} 2. c4 {[%emt 0:00:04]} e6 {[%emt 0:00:24]} 3. Nf3 {[%emt 0:01:07]} Bb4+ {[%emt 0:02:22]} 4. Bd2 {[%emt 0:00:54]} a5 {[%emt 0:00:18]} 5. g3 {[%emt 0:00:31]} b6 {[%emt 0:03:48]} 6. Bg2 {[%emt 0:00:12]} Bb7 {[%emt 0:00:07]} 7. O-O {[%emt 0:00:46]} O-O {[%emt 0:04:06]} 8. Bf4 {[%emt 0:04:16][%cal Oc4c5]} Nh5 {[%emt 0:06:03]} 9. Bc1 {[%emt 0:21:57][%cal Oc4c5]} Be7 {[%emt 0:05:18]} 10. Qc2 {[%emt 1:05:34][%cal Of3g5]} Nf6 {[%emt 0:03:10]} 11. Nc3 {[%emt 0:00:00]} d5 {[%emt 0:02:40]} 12. Ne5 {[%emt 0:00:00]} (12. cxd5 {simplifies} exd5 13. Rd1 Nbd7 14. Bf4) 12... c6 {[%emt 0:02:05]} 13. Rd1 {[%emt 0:00:00]} Nfd7 {[%emt 0:03:03]} 14. cxd5 {[%emt 0:00:00]} cxd5 {[%emt 0:03:35]} 15. Nxd7 {[%emt 0:00:00]} Qxd7 {[%emt 0:03:55]} 16. Qb3 {[%emt 0:00:00]} (16. e4 $14) 16... a4 $15 {[%emt 0:06:12]} 17. Qb5 {[%emt 0:00:00]} (17. Qxb6 $2 Bc6 18. Bf4 Rc8 $19) 17... Rc8 {[%emt 0:07:59]} (17... Nc6 $5 18. Qd3 (18. Qxb6 $2 Bc8 $19) (18. Nxa4 $2 Ba6 $17) 18... Rfc8 $15) 18. Qxd7 {[%emt 0:00:00]} Nxd7 {[%emt 0:00:23]} 19. a3 {[%emt 0:00:00]} Bc6 {[%emt 0:10:42]} 20. Bf4 {[%emt 0:00:00]} b5 {[%emt 0:01:35]} 21. e4 {[%emt 0:00:25][%cal Re4d5]} Nb6 {[%emt 0:01:35]} 22. exd5 {[%emt 0:00:55]} Nxd5 {[%emt 0:03:54]} 23. Bxd5 {[%emt 0:00:51]} Bxd5 {[%emt 0:04:37]} 24. Nxb5 {[%emt 0:01:26] White is weak on the light squares} g5 {[%emt 0:02:34]} 25. Be3 {[%emt 0:00:40]} Rc2 {[%emt 0:04:15][%mdl 1024] Black has compensation.} 26. Bc1 {[%emt 0:02:46]} (26. Rd2 $15 Rxd2 27. Bxd2) 26... Bb3 $17 {[%emt 0:00:55] Black has more active pieces.} 27. Rd2 {[%emt 0:00:42]} Rac8 {[%emt 0:01:06]} 28. Nc3 {[%emt 0:00:23]} Rb8 {[%emt 0:06:46]} 29. Rxc2 {[%emt 0:00:29]} Bxc2 {[%emt 0:00:04]} 30. d5 {[%emt 0:00:10]} Bf6 {[%emt 0:00:34]} 31. dxe6 {[%emt 0:01:05]} fxe6 {[%emt 0:00:09]} 32. f4 {[%emt 0:00:35]} ({White should play} 32. Kf1 $15) 32... gxf4 {[%emt 0:03:08]} 33. gxf4 {[%emt 0:00:01]} Kf7 {[%emt 0:00:46]} 34. Kf2 {[%emt 0:00:09]} h5 {[%emt 0:01:24]} 35. Ke2 {[%emt 0:01:03]} Rc8 {[%emt 0:03:06]} (35... h4 $17 {aiming for ...Rg8.} 36. Ke3 Rb3) 36. Bd2 $11 {[%emt 0:00:47]} Rb8 {[%emt 0:00:06]} ({Black should play} 36... Rg8 $11 37. Rf1 Rg2+ 38. Rf2 Rxf2+ (38... Bd3+ 39. Ke3 $11) 39. Kxf2 e5) 37. Bc1 $1 $17 {[%emt 0:00:15]} h4 {[%emt 0:01:23]} 38. Kd2 {[%emt 0:00:29]} Bb3 {[%emt 0:00:51]} 39. Kd3 {[%emt 0:00:46]} Rg8 {[%emt 0:00:52]} 40. Bd2 {[%emt 0:00:28]} Rg2 {[%emt 0:00:26]} 41. Rh1 {[%emt 0:03:39]} h3 {[%emt 0:07:54]} 42. Ne4 {[%emt 0:10:35]} Bxb2 {[%emt 0:04:14]} 43. Ng5+ {[%emt 0:00:15]} Kg6 {[%emt 0:01:22]} 44. Bb4 {[%emt 0:01:18]} Bc2+ {[%emt 0:03:36]} 45. Ke3 {[%emt 0:07:08]} Bf5 {[%emt 0:00:33]} 46. Nf3 {[%emt 0:00:10]} Kh5 {[%emt 0:05:45] Repels Nh4} 47. Bd6 $2 {[%emt 0:11:00]} (47. Nd4 $17) 47... Rc2 $19 {[%emt 0:01:51]} 48. Rg1 Bg4 {[%emt 0:03:26] This pair of bishops is nice.} 49. Ne5 {[%emt 0:00:00]} Re2+ {[%emt 0:01:28]} 50. Kd3 {[%emt 0:00:00]} Bxe5 {[%emt 0:00:30]} 51. fxe5 $2 {[%emt 0:00:29]} (51. Bxe5 Rxh2 52. f5 Bxf5+ (52... Re2 $2 53. Bc7 $19) 53. Ke3) 51... Rxh2 {[%emt 0:00:17][%mdl 4096] Endgame KRB-KRB. Black is a pawn up.} 52. Ke3 {[%emt 0:00:10]} (52. Kc3 $142) 52... Rb2 {[%emt 0:00:42]} 53. Kf4 h2 {[%emt 0:08:11]} 54. Rc1 {[%emt 0:02:51]} Kh4 {[%emt 0:00:00]} 55. Be7+ Kh3 {[%emt 0:00:00]} 56. Rc8 {[%emt 0:00:00]} Rf2+ 57. Ke3 {[%emt 0:00:00]} Rf3+ {[%emt 0:00:00]} ({Less strong is} 57... h1=R 58. Kxf2 Rh2+ 59. Ke3 $15) 58. Ke4 {[%emt 0:00:17]} h1=Q 0-1